fUST/lending_fUST_20250531
["ID","MTS","AMOUNT","RATE_DAILY","PERIOD"]
[363323732,1748675368900,-1836.76,0.00016986,2]
[363323733,1748675368925,-984.4,0.00016986,2]
[363323734,1748675368948,-430.0,0.00016986,2]
[363323735,1748675368972,-430.0,0.00016986,2]
[363323736,1748675368994,-450.0,0.00016986,2]
[363323737,1748675369018,-430.0,0.00016986,2]
[363323738,1748675369043,-1087.98,0.00016986,2]
[363323739,1748675369066,-430.0,0.00016986,2]
[363323740,1748675369089,-430.0,0.00016986,2]
[363323741,1748675369112,-430.0,0.00016986,2]
[363323742,1748675369135,-430.0,0.00016986,2]
[363323743,1748675369159,-1305.54,0.00016986,2]
[363323744,1748675369183,-430.0,0.00016986,2]
[363323745,1748675369208,-430.0,0.00016986,2]
[363323746,1748675369233,-430.0,0.00016986,2]
[363323747,1748675369258,-430.0,0.00016986,2]
[363323748,1748675369282,-762.53,0.00016986,2]
[363323749,1748675369306,-441.13171445,0.00016986,2]
[363323750,1748675369330,-430.0,0.00016986,2]
[363323751,1748675369354,-430.0,0.00016986,2]
[363323752,1748675369378,-430.0,0.00016986,2]
[363323753,1748675369403,-430.0,0.00016986,2]
[363323754,1748675369427,-430.0,0.00016986,2]
[363323755,1748675369452,-430.0,0.00016986,2]
[363323756,1748675369477,-430.0,0.00016986,2]
[363323757,1748675369502,-430.0,0.00016986,2]
[363323758,1748675369526,-430.0,0.00016986,2]
[363323759,1748675369550,-430.0,0.00016986,2]
[363323760,1748675369576,-430.0,0.00016986,2]
[363323761,1748675369601,-1000.0,0.00017068,2]
[363323762,1748675369625,-2099.98804436,0.00017078,2]
[363323763,1748675369655,-2475.13567253,0.00017141,2]
[363323764,1748675369682,-430.0,0.0001726,2]
[363323765,1748675369709,-430.0,0.0001726,2]
[363323766,1748675369733,-430.0,0.0001726,2]
[363323767,1748675369758,-430.0,0.0001726,2]
[363323768,1748675369783,-430.0,0.0001726,2]
[363323769,1748675369809,-804.21,0.0001726,2]
[363323770,1748675369834,-430.0,0.0001726,2]
[363323771,1748675369862,-430.0,0.0001726,2]
[363323772,1748675369890,-546.54,0.0001726,2]
[363323773,1748675369917,-430.0,0.0001726,2]
[363323774,1748675369943,-430.0,0.0001726,2]
[363323775,1748675369969,-430.0,0.0001726,2]
[363323776,1748675369992,-430.0,0.0001726,2]
[363323777,1748675370017,-1504.6,0.0001726,2]
[363323778,1748675370041,-430.0,0.0001726,2]
[363323779,1748675370063,-430.0,0.0001726,2]
[363323780,1748675370087,-430.0,0.0001726,2]
[363323781,1748675370113,-1564.52,0.0001726,2]
[363323782,1748675370138,-430.0,0.0001726,2]
[363323783,1748675370162,-430.0,0.0001726,2]
[363323784,1748675370189,-430.0,0.0001726,2]
[363323785,1748675370212,-430.0,0.0001726,2]
[363323786,1748675370238,-1368.07,0.0001726,2]
[363323787,1748675370264,-430.0,0.0001726,2]
[363323788,1748675370288,-430.0,0.0001726,2]
[363323789,1748675370312,-430.0,0.0001726,2]
[363323790,1748675370337,-430.0,0.0001726,2]
[363323791,1748675370361,-430.0,0.0001726,2]
[363323792,1748675370384,-445.99,0.0001726,2]
[363323793,1748675370407,-430.0,0.0001726,2]
[363323794,1748675370434,-1836.76,0.0001726,2]
[363323795,1748675370458,-984.4,0.0001726,2]
[363323796,1748675370481,-430.0,0.0001726,2]
[363323797,1748675370505,-430.0,0.0001726,2]
[363323798,1748675370528,-430.0,0.0001726,2]
[363323799,1748675370554,-1087.98,0.0001726,2]
[363323800,1748675370577,-430.0,0.0001726,2]
[363323801,1748675370600,-430.0,0.0001726,2]
[363323802,1748675370623,-430.0,0.0001726,2]
[363323803,1748675370646,-430.0,0.0001726,2]
[363323804,1748675370672,-1305.54,0.0001726,2]
[363323805,1748675370697,-175.65118638,0.0001726,2]
[363323806,1748675370725,-430.0,0.0001726,2]
[363323807,1748675370749,-430.0,0.0001726,2]
[363323808,1748675370774,-762.53,0.0001726,2]
[363323809,1748675370798,-538.15264217,0.0001726,2]
[363323810,1748675370821,-430.0,0.0001726,2]
[363323811,1748675370844,-430.0,0.0001726,2]
[363323812,1748675370868,-262.30902406,0.0001726,2]
[363323813,1748675371120,-430.0,0.00016438,2]
[363323814,1748675374606,205.98491207,0.00016438,2]
[363323843,1748675437940,-215.64578712,0.00016437,2]
[363323844,1748675437950,-157.29967681,0.00016437,2]
[363323845,1748675437960,-156.30416577,0.00016437,2]
[363323846,1748675437970,-224.01508793,0.00016438,2]
[363323847,1748675437980,-430.0,0.00016438,2]
[363323848,1748675437989,-430.0,0.00016438,2]
[363323849,1748675437999,-430.0,0.00016438,2]
[363323850,1748675438009,-430.0,0.00016438,2]
[363323851,1748675438019,-430.0,0.00016438,2]
[363323852,1748675438028,-430.0,0.00016438,2]
[363323853,1748675438038,-430.0,0.00016438,2]
[363323854,1748675438047,-430.0,0.00016438,2]
[363323855,1748675438062,-430.53010459,0.00016438,2]
[363323856,1748675438073,-430.0,0.00016438,2]
[363323857,1748675438084,-430.0,0.00016438,2]
[363323858,1748675438094,-430.0,0.00016438,2]
[363323859,1748675438104,-430.0,0.00016438,2]
[363323860,1748675438114,-236.91088962,0.00016438,2]
[363323861,1748675438124,-430.0,0.00016438,2]
[363323862,1748675438135,-430.0,0.00016438,2]
[363323863,1748675438147,-430.0,0.00016438,2]
[363323864,1748675438158,-430.0,0.00016438,2]
[363323865,1748675438168,-430.0,0.00016438,2]
[363323866,1748675438178,-670.17,0.00016438,2]
[363323867,1748675438188,-435.18193568,0.00016438,2]
[363323868,1748675438199,-544.66,0.00016438,2]
[363323869,1748675438209,-430.0,0.00016438,2]
[363323870,1748675438219,-430.0,0.00016438,2]
[363323871,1748675438228,-320.0,0.00016438,2]
[363323872,1748675438238,-9557.33,0.00016438,2]
[363323873,1748675438247,-430.0,0.00016438,2]
[363323874,1748675438258,-1320.23,0.00016438,2]
[363323875,1748675438268,-415.04103203,0.00016438,2]
[363323876,1748675438277,-300.0,0.00016438,2]
[363323877,1748675438288,-430.0,0.00016438,2]
[363323878,1748675438297,-588.59,0.00016438,2]
[363323879,1748675438306,-430.0,0.00016438,2]
[363323880,1748675438315,-430.0,0.00016438,2]
[363323881,1748675438325,-430.0,0.00016438,2]
[363323882,1748675438335,-430.0,0.00016438,2]
[363323883,1748675438347,-431.54575165,0.00016438,2]
[363323884,1748675438357,-430.0,0.00016438,2]
[363323885,1748675438367,-430.0,0.00016438,2]
[363323886,1748675438377,-376.03657869,0.00016438,2]
[363323887,1748675438387,-430.0,0.00016438,2]
[363323888,1748675438398,-197.48797932,0.00016438,2]
[363323889,1748675438408,-309.32705456,0.00016711,2]
[363323890,1748675438418,-500.0,0.00016711,2]
[363323891,1748675438427,-500.0,0.00016711,2]
[363323892,1748675438436,-637.48598197,0.00016711,2]
[363323893,1748675438445,-430.0,0.00016712,2]
[363323894,1748675438454,-430.0,0.00016712,2]
[363323895,1748675438463,-430.0,0.00016712,2]
[363323896,1748675438473,-566.89922253,0.00016712,2]
[363323897,1748675438483,-430.0,0.00016712,2]
[363323898,1748675438493,-430.0,0.00016712,2]
[363323899,1748675438502,-430.0,0.00016712,2]
[363323900,1748675438512,-430.0,0.00016712,2]
[363323901,1748675438522,-430.0,0.00016712,2]
[363323902,1748675438531,-430.0,0.00016712,2]
[363323903,1748675438541,-430.0,0.00016712,2]
[363323904,1748675438550,-430.0,0.00016712,2]
[363323905,1748675438560,-430.0,0.00016712,2]
[363323906,1748675438569,-430.0,0.00016712,2]
[363323907,1748675438579,-670.17,0.00016712,2]
[363323908,1748675438588,-544.66,0.00016712,2]
[363323909,1748675438598,-430.0,0.00016712,2]
[363323910,1748675438607,-430.0,0.00016712,2]
[363323911,1748675438617,-9557.33,0.00016712,2]
[363323912,1748675438626,-430.0,0.00016712,2]
[363323913,1748675438636,-1320.23,0.00016712,2]
[363323914,1748675438645,-430.0,0.00016712,2]
[363323915,1748675438655,-588.59,0.00016712,2]
[363323916,1748675438664,-430.0,0.00016712,2]
[363323917,1748675438674,-430.0,0.00016712,2]
[363323918,1748675438683,-430.0,0.00016712,2]
[363323919,1748675438693,-430.0,0.00016712,2]
[363323920,1748675438702,-430.0,0.00016986,2]
[363323921,1748675438713,-430.0,0.00016986,2]
[363323922,1748675438726,-430.0,0.00016986,2]
[363323923,1748675438736,-430.0,0.00016986,2]
[363323924,1748675438745,-430.0,0.00016986,2]
[363323925,1748675438755,-430.0,0.00016986,2]
[363323926,1748675438765,-430.0,0.00016986,2]
[363323927,1748675438785,-430.0,0.00016986,2]
[363323928,1748675438799,-406.44018176,0.00016986,2]
[363323929,1748675438808,-430.0,0.00016986,2]
[363323930,1748675438820,-670.17,0.00016986,2]
[363323931,1748675438829,-544.66,0.00016986,2]
[363323932,1748675438839,-430.0,0.00016986,2]
[363323933,1748675438848,-430.0,0.00016986,2]
[363323934,1748675438858,-9557.33,0.00016986,2]
[363323935,1748675438867,-1320.23,0.00016986,2]
[363323936,1748675438877,-430.0,0.00016986,2]
[363323937,1748675438887,-430.0,0.00016986,2]
[363323938,1748675438896,-588.59,0.00016986,2]
[363323939,1748675438906,-430.0,0.00016986,2]
[363323940,1748675438915,-430.0,0.00016986,2]
[363323941,1748675438925,-430.0,0.00016986,2]
[363323942,1748675438934,-430.0,0.00016986,2]
[363323943,1748675438944,-167.69097594,0.0001726,2]
[363323944,1748675438953,-150.54375324,0.0001726,2]
[363323945,1748675438963,-430.0,0.0001726,2]
[363323946,1748675438972,-430.0,0.0001726,2]
[363323947,1748675438982,-430.0,0.0001726,2]
[363323948,1748675438992,-430.0,0.0001726,2]
[363323949,1748675439001,-430.0,0.0001726,2]
[363323950,1748675439011,-430.0,0.0001726,2]
[363323951,1748675439020,-430.0,0.0001726,2]
[363323952,1748675439030,-430.0,0.0001726,2]
[363323953,1748675439040,-430.0,0.0001726,2]
[363323954,1748675439049,-430.0,0.0001726,2]
[363323955,1748675439059,-430.0,0.0001726,2]
[363323956,1748675439069,-430.0,0.0001726,2]
[363323957,1748675439078,-670.17,0.0001726,2]
[363323958,1748675439088,-544.66,0.0001726,2]
[363323959,1748675439098,-430.0,0.0001726,2]
[363323960,1748675439107,-430.0,0.0001726,2]
[363323961,1748675439117,-9557.33,0.0001726,2]
[363323962,1748675439126,-1320.23,0.0001726,2]
[363323963,1748675439136,-526.52078024,0.0001726,2]
[363323964,1748675439145,-588.59,0.0001726,2]
[363323965,1748675439155,-430.0,0.0001726,2]
[363323966,1748675439164,-292.2053654,0.0001726,2]
[363323967,1748675439173,-498.97968538,0.0001726,2]
[363323968,1748675439183,-430.0,0.0001726,2]
[363323969,1748675439194,-500.0,0.00017281,2]
[363323970,1748675439204,-214.63534523,0.00017281,2]
[363323971,1748675439213,-210.28387351,0.00017281,2]
[363323972,1748675439223,-500.0,0.00017281,2]
[363323973,1748675439232,-514.02,0.0001736,3]
[363323974,1748675439241,-500.0,0.00017422,2]
[363323975,1748675439251,-2475.13567253,0.00017452,2]
[363323976,1748675439260,-430.0,0.00017534,2]
[363323977,1748675439269,-430.0,0.00017534,2]
[363323978,1748675439279,-430.0,0.00017534,2]
[363323979,1748675439289,-1564.52,0.00017534,2]
[363323980,1748675439299,-430.0,0.00017534,2]
[363323981,1748675439308,-430.0,0.00017534,2]
[363323982,1748675439318,-201.25692703,0.00017534,2]
[363323983,1748675439327,-1368.07,0.00017534,2]
[363323984,1748675439337,-430.0,0.00017534,2]
[363323985,1748675439347,-430.0,0.00017534,2]
[363323986,1748675439357,-438.83,0.00017534,2]
[363323987,1748675439367,-430.0,0.00017534,2]
[363323988,1748675439376,-430.0,0.00017534,2]
[363323989,1748675439385,-430.0,0.00017534,2]
[363323990,1748675439395,-1836.76,0.00017534,2]
[363323991,1748675439405,-984.4,0.00017534,2]
[363323992,1748675439414,-430.0,0.00017534,2]
[363323993,1748675439423,-430.0,0.00017534,2]
[363323994,1748675439433,-430.0,0.00017534,2]
[363323995,1748675439443,-1087.98,0.00017534,2]
[363323996,1748675439454,-430.0,0.00017534,2]
[363323997,1748675439463,-464.36689448,0.00017534,2]
[363323998,1748675439473,-430.0,0.00017534,2]
[363323999,1748675439483,-1305.54,0.00017534,2]
[363324000,1748675439493,-430.0,0.00017534,2]
[363324001,1748675439503,-430.0,0.00017534,2]
[363324002,1748675439513,-762.53,0.00017534,2]
[363324003,1748675439523,-430.0,0.00017534,2]
[363324004,1748675439532,-430.0,0.00017534,2]
[363324005,1748675439542,-430.0,0.00017534,2]
[363324006,1748675439551,-430.0,0.00017534,2]
[363324007,1748675439561,-430.0,0.00017534,2]
[363324008,1748675439571,-430.0,0.00017534,2]
[363324009,1748675439580,-430.0,0.00017534,2]
[363324010,1748675439590,-430.0,0.00017534,2]
[363324012,1748675439599,-430.0,0.00017534,2]
[363324013,1748675439609,-194.3484285,0.00017534,2]
[363324014,1748675439620,-430.0,0.00017534,2]
[363324015,1748675439630,-430.0,0.00017534,2]
[363324016,1748675439640,-430.0,0.00017534,2]
[363324017,1748675439650,-430.0,0.00017534,2]
[363324018,1748675439660,-430.0,0.00017534,2]
[363324019,1748675439669,-670.17,0.00017534,2]
[363324020,1748675439679,-544.66,0.00017534,2]
[363324021,1748675439688,-430.0,0.00017534,2]
[363324022,1748675439699,-430.0,0.00017534,2]
[363324023,1748675439708,-9557.33,0.00017534,2]
[363324024,1748675439719,-1320.23,0.00017534,2]
[363324025,1748675439730,-588.59,0.00017534,2]
[363324026,1748675439740,-463.08068349,0.00017534,2]
[363324027,1748675439749,-430.0,0.00017534,2]
[363324028,1748675439759,-430.0,0.00017535,2]
[363324029,1748675439769,-430.0,0.00017535,2]
[363324030,1748675439779,-371.18188898,0.00017535,2]
[363324031,1748675439788,-430.0,0.00017535,2]
[363324032,1748675439799,-430.0,0.00017535,2]
[363324033,1748675439809,-430.0,0.00017535,2]
[363324034,1748675439819,-430.0,0.00017535,2]
[363324035,1748675439828,-430.62878932,0.00017535,2]
[363324036,1748675439838,-431.43832889,0.00017535,2]
[363324037,1748675439852,-421.6133537,0.00017535,2]
[363324038,1748675439862,-430.0,0.00017535,2]
[363324039,1748675439872,-430.0,0.00017535,2]
[363324040,1748675439881,-430.0,0.00017535,2]
[363324041,1748675439890,-400.52654759,0.00017535,2]
[363324042,1748675439901,-430.0,0.00017535,2]
[363324043,1748675439909,-430.0,0.00017535,2]
[363324044,1748675439919,-430.0,0.00017535,2]
[363324045,1748675439929,-430.0,0.00017535,2]
[363324046,1748675439941,-475.45897167,0.00017535,2]
[363324047,1748675439950,-430.0,0.00017535,2]
[363324048,1748675439959,-430.0,0.00017535,2]
[363324049,1748675439968,-459.56978291,0.00017535,2]
[363324050,1748675439978,-430.0,0.00017535,2]
[363324051,1748675439988,-430.0,0.00017535,2]
[363324052,1748675439997,-430.0,0.00017535,2]
[363324053,1748675440007,-430.0,0.00017535,2]
[363324054,1748675440017,-435.66084291,0.00017535,2]
[363324055,1748675440026,-500.0,0.00017535,2]
[363324056,1748675440035,-435.31527319,0.00017535,2]
[363324057,1748675440044,-434.05691854,0.00017535,2]
[363324058,1748675440054,-430.0,0.00017535,2]
[363324059,1748675440063,-431.2969658,0.00017535,2]
[363324060,1748675440072,-430.0,0.00017535,2]
[363324061,1748675440082,-432.23658006,0.00017535,2]
[363324062,1748675440091,-368.64500016,0.00017535,2]
[363324063,1748675440100,-514.26358156,0.00017535,2]
[363324064,1748675440110,-430.0,0.00017535,2]
[363324065,1748675440119,-430.0,0.00017535,2]
[363324066,1748675440128,-434.13741432,0.00017535,2]
[363324067,1748675440138,-432.50096307,0.00017535,2]
[363324068,1748675440147,-430.0,0.00017535,2]
[363324069,1748675440157,-339.37054799,0.00017535,2]
[363324070,1748675440166,-430.0,0.00017535,2]
[363324071,1748675440176,-430.0,0.00017535,2]
[363324072,1748675440186,-430.0,0.00017535,2]
[363324073,1748675440195,-430.0,0.00017535,2]
[363324074,1748675440206,-430.0,0.00017535,2]
[363324075,1748675440215,-430.0,0.00017535,2]
[363324077,1748675440225,-430.0,0.00017535,2]
[363324078,1748675440234,-430.0,0.00017535,2]
[363324080,1748675440244,-430.0,0.00017535,2]
[363324082,1748675440253,-430.0,0.00017535,2]
[363324083,1748675440263,-430.0,0.00017535,2]
[363324084,1748675440273,-430.0,0.00017535,2]
[363324085,1748675440282,-430.0,0.00017535,2]
[363324086,1748675440292,-290.35,0.00017535,2]
[363324087,1748675440302,-430.0,0.00017535,2]
[363324088,1748675440311,-430.0,0.00017535,2]
[363324089,1748675440457,-430.0,0.00017535,2]
[363324090,1748675440481,-430.0,0.00017535,2]
[363324091,1748675440491,-430.0,0.00017535,2]
[363324092,1748675440501,-430.0,0.00017535,2]
[363324093,1748675440510,-430.0,0.00017535,2]
[363324094,1748675440519,-435.10445431,0.00017535,2]
[363324095,1748675440529,-434.17738906,0.00017535,2]
[363324096,1748675440538,-430.0,0.00017535,2]
[363324097,1748675440548,-500.0,0.00017535,2]
[363324098,1748675440557,-484.77902506,0.00017535,2]
[363324099,1748675440567,-430.0,0.00017535,2]
[363324100,1748675440576,-261.35137386,0.00017535,2]
[363324101,1748675440585,-430.0,0.00017535,2]
[363324102,1748675440595,-430.0,0.00017535,2]
[363324103,1748675440604,-430.0,0.00017535,2]
[363324104,1748675440613,-430.0,0.00017535,2]
[363324105,1748675440622,-430.0,0.00017535,2]
[363324106,1748675440632,-430.0,0.00017535,2]
[363324107,1748675440641,-397.82929931,0.00017535,2]
[363324108,1748675440650,-430.0,0.00017535,2]
[363324109,1748675440660,-430.0,0.00017535,2]
[363324110,1748675440669,-430.0,0.00017535,2]
[363324111,1748675440678,-430.0,0.00017535,2]
[363324112,1748675440687,-430.0,0.00017535,2]
[363324113,1748675440698,-430.0,0.00017535,2]
[363324114,1748675440708,-280.24167405,0.00017535,2]
[363324115,1748675440717,-493.54,0.00017535,2]
[363324116,1748675440729,-433.29841757,0.00017535,2]
[363324117,1748675440739,-430.0,0.00017535,2]
[363324118,1748675440749,-430.0,0.00017535,2]
[363324119,1748675440758,-430.0,0.00017535,2]
[363324120,1748675440768,-430.0,0.00017535,2]
[363324121,1748675440777,-430.0,0.00017535,2]
[363324122,1748675440787,-430.0,0.00017535,2]
[363324123,1748675440796,-435.61325948,0.00017535,2]
[363324124,1748675440806,-430.0,0.00017535,2]
[363324125,1748675440815,-430.0,0.00017535,2]
[363324126,1748675440824,-221.5857828,0.00017535,2]
[363324127,1748675440834,-835.97,0.00017535,2]
[363324128,1748675440843,-401.6869302,0.00017535,2]
[363324129,1748675440852,-430.0,0.00017535,2]
[363324130,1748675440861,-1000.0,0.00017535,2]
[363324131,1748675440870,-430.0,0.00017535,2]
[363324132,1748675440879,-430.0,0.00017535,2]
[363324133,1748675440888,-430.0,0.00017535,2]
[363324134,1748675440897,-430.0,0.00017535,2]
[363324135,1748675440908,-548.43,0.00017535,2]
[363324136,1748675440917,-2837.06,0.00017535,2]
[363324137,1748675440926,-430.0,0.00017535,2]
[363324138,1748675440935,-430.0,0.00017535,2]
[363324139,1748675440944,-618.69,0.00017535,2]
[363324140,1748675440954,-430.0,0.00017535,2]
[363324141,1748675440963,-430.0,0.00017535,2]
[363324142,1748675440972,-430.0,0.00017535,2]
[363324143,1748675440981,-440.69313988,0.00017535,2]
[363324144,1748675440991,-250.0,0.00017535,2]
[363324145,1748675441000,-433.90014534,0.00017536,2]
[363324146,1748675441010,-430.0,0.00017536,2]
[363324147,1748675441019,-1000.0,0.00017606,7]
[363324148,1748675441029,-1000.0,0.00017606,7]
[363324149,1748675441039,-1000.0,0.00017606,2]
[363324150,1748675441049,-2099.98804436,0.00017667,2]
[363324151,1748675441059,-500.0,0.00017729,2]
[363324152,1748675441068,-500.0,0.00017729,2]
[363324153,1748675441078,-500.0,0.00017729,2]
[363324154,1748675441089,-262.20971116,0.00017753,2]
[363324155,1748675441098,-500.0,0.00017759,2]
[363324156,1748675441110,-500.0,0.00017759,2]
[363324157,1748675441120,-2475.13567253,0.00017762,2]
[363324158,1748675441130,-500.0,0.00017794,2]
[363324159,1748675441140,-430.0,0.00017808,2]
[363324160,1748675441150,-430.0,0.00017808,2]
[363324161,1748675441160,-430.0,0.00017808,2]
[363324162,1748675441170,-1564.52,0.00017808,2]
[363324163,1748675441180,-430.0,0.00017808,2]
[363324164,1748675441189,-430.0,0.00017808,2]
[363324165,1748675441199,-1368.07,0.00017808,2]
[363324166,1748675441209,-430.0,0.00017808,2]
[363324167,1748675441219,-430.0,0.00017808,2]
[363324168,1748675441228,-430.0,0.00017808,2]
[363324169,1748675441237,-430.0,0.00017808,2]
[363324170,1748675441247,-1836.76,0.00017808,2]
[363324171,1748675441257,-984.4,0.00017808,2]
[363324172,1748675441266,-430.0,0.00017808,2]
[363324173,1748675441275,-430.0,0.00017808,2]
[363324174,1748675441284,-430.0,0.00017808,2]
[363324175,1748675441293,-1087.98,0.00017808,2]
[363324176,1748675441302,-430.0,0.00017808,2]
[363324177,1748675441311,-430.0,0.00017808,2]
[363324178,1748675441320,-1305.54,0.00017808,2]
[363324179,1748675441329,-430.0,0.00017808,2]
[363324180,1748675441338,-430.0,0.00017808,2]
[363324181,1748675441347,-762.53,0.00017808,2]
[363324182,1748675441357,-430.0,0.00017808,2]
[363324183,1748675441366,-430.0,0.00017808,2]
[363324184,1748675441374,-430.0,0.00017808,2]
[363324185,1748675441384,-430.0,0.00017808,2]
[363324186,1748675441393,-430.0,0.00017808,2]
[363324187,1748675441402,-430.0,0.00017808,2]
[363324188,1748675441411,-430.0,0.00017808,2]
[363324189,1748675441419,-430.0,0.00017808,2]
[363324190,1748675441428,-430.0,0.00017808,2]
[363324191,1748675441437,-430.0,0.00017808,2]
[363324192,1748675441446,-430.0,0.00017808,2]
[363324193,1748675441455,-518.1225301,0.00017808,2]
[363324194,1748675441464,-430.0,0.00017808,2]
[363324195,1748675441473,-670.17,0.00017808,2]
[363324196,1748675441481,-544.66,0.00017808,2]
[363324197,1748675441489,-430.0,0.00017808,2]
[363324198,1748675441497,-430.0,0.00017808,2]
[363324199,1748675441505,-9557.33,0.00017808,2]
[363324200,1748675441514,-1320.23,0.00017808,2]
[363324201,1748675441522,-588.59,0.00017808,2]
[363324202,1748675441529,-430.0,0.00017808,2]
[363324203,1748675441538,-430.0,0.00017809,2]
[363324204,1748675441548,-430.0,0.00017809,2]
[363324205,1748675441558,-430.0,0.00017809,2]
[363324206,1748675441568,-462.73193462,0.00017809,2]
[363324207,1748675441578,-440.70801714,0.00017809,2]
[363324208,1748675441588,-430.0,0.00017809,2]
[363324209,1748675441598,-430.148949,0.00017809,2]
[363324210,1748675441608,-430.0,0.00017809,2]
[363324211,1748675441618,-430.0,0.00017809,2]
[363324212,1748675441627,-430.0,0.00017809,2]
[363324213,1748675441638,-430.0,0.00017809,2]
[363324214,1748675441648,-257.41717826,0.00017809,2]
[363324215,1748675441658,-430.0,0.00017809,2]
[363324216,1748675441667,-430.0,0.00017809,2]
[363324217,1748675441676,-430.0,0.00017809,2]
[363324218,1748675441685,-430.0,0.00017809,2]
[363324219,1748675441695,-430.0,0.00017809,2]
[363324220,1748675441704,-430.0,0.00017809,2]
[363324221,1748675441715,-430.0,0.00017809,2]
[363324222,1748675441727,-430.0,0.00017809,2]
[363324223,1748675441737,-151.65,0.00017809,2]
[363324224,1748675441747,-430.0,0.00017809,2]
[363324225,1748675441756,-430.0,0.00017809,2]
[363324226,1748675441767,-430.0,0.00017809,2]
[363324227,1748675441776,-430.0,0.00017809,2]
[363324228,1748675441786,-430.0,0.00017809,2]
[363324229,1748675441797,-430.0,0.00017809,2]
[363324230,1748675441807,-493.54,0.00017809,2]
[363324231,1748675441817,-430.0,0.00017809,2]
[363324232,1748675441826,-430.0,0.00017809,2]
[363324233,1748675441836,-430.0,0.00017809,2]
[363324234,1748675441845,-430.0,0.00017809,2]
[363324235,1748675441855,-430.0,0.00017809,2]
[363324236,1748675441864,-835.97,0.00017809,2]
[363324237,1748675441874,-430.0,0.00017809,2]
[363324238,1748675441883,-430.0,0.00017809,2]
[363324239,1748675441893,-430.0,0.00017809,2]
[363324240,1748675441902,-548.43,0.00017809,2]
[363324241,1748675441912,-2837.06,0.00017809,2]
[363324242,1748675441922,-430.0,0.00017809,2]
[363324243,1748675441932,-618.69,0.00017809,2]
[363324244,1748675441941,-430.0,0.00017809,2]
[363324245,1748675441951,-430.0,0.00017809,2]
[363324246,1748675441960,-430.0,0.00017809,2]
[363324247,1748675441970,-570.66864362,0.0001781,2]
[363324248,1748675441979,-500.0,0.00017829,2]
[363324249,1748675441990,-500.0,0.00017829,2]
[363324250,1748675442000,-500.0,0.00017869,2]
[363324251,1748675442009,-500.0,0.00017869,2]
[363324252,1748675442020,-501.92284919,0.0001788,2]
[363324253,1748675442030,-587.0,0.00017962,2]
[363324254,1748675442039,-500.0,0.0001797,2]
[363324255,1748675442051,-500.27378623,0.00017983,2]
[363324256,1748675442061,-500.0,0.00017983,2]
[363324257,1748675442071,-500.0,0.00017983,2]
[363324258,1748675442082,-500.0,0.00018013,2]
[363324259,1748675442092,-500.0,0.00018013,2]
[363324260,1748675442102,-561.02182487,0.00018013,2]
[363324261,1748675442112,-500.0,0.00018013,2]
[363324262,1748675442122,-215.20892618,0.00018049,2]
[363324263,1748675442131,-2475.13567253,0.00018072,2]